bitfinex/quotes_ETHUSD_20240828
["timestamp","ask_amount","ask_price","bid_price","bid_amount"]
[1724868060163,3.99055,2506.0,2505.7,2.35186464]
[1724868060395,2.93364692,2506.7,2505.7,2.35186464]
[1724868060560,3.99074,2505.8,2505.7,0.10106464]
[1724868060762,7.98148,2505.8,2505.7,0.10106464]
[1724868061089,3.99114,2505.6,2505.2,2.2508]
[1724868061287,3.0,2506.2,2505.2,2.2508]
[1724868061595,3.99153,2505.3,2505.2,2.2508]
[1724868061894,3.99153,2505.3,2504.7,3.99234]
[1724868061895,3.99171,2505.2,2504.9,2.2508]
[1724868062098,3.9912,2505.6,2505.0,3.992]
[1724868062402,3.99063,2505.9,2504.9,2.2508]
[1724868062553,3.99195,2505.1,2504.9,2.2508]
[1724868062751,3.99107,2505.6,2504.9,2.2508]
[1724868062987,3.0,2505.8,2504.9,2.2508]
[1724868063296,3.99099,2505.7,2505.0,3.99186]
[1724868063460,3.99122,2505.5,2505.0,3.99186]
[1724868063665,3.98984,2506.4,2505.5,2.295]
[1724868063874,3.991,2505.7,2505.1,3.99182]
[1724868064122,3.991,2505.7,2505.1,10.27854]
[1724868064327,7.982,2505.7,2505.2,0.399182]
[1724868064542,3.99067,2505.9,2505.3,3.99144]
[1724868064699,3.99067,2505.9,2505.3,0.10126418]
[1724868065208,0.50164692,2505.9,2505.3,0.10126418]
[1724868065547,7.98136,2505.9,2505.3,4.3723388]
[1724868065725,3.99008,2506.3,2505.6,2.2696]
[1724868066039,3.99008,2506.3,2505.4,0.07982244]
[1724868066040,3.98971,2506.5,2506.0,3.99033]
[1724868066341,3.98874,2507.1,2506.1,0.07980214]
[1724868066497,3.98874,2507.1,2506.5,2.2696]
[1724868066827,0.50164692,2507.3,2506.6,0.09969098]
[1724868067147,3.9893,2506.7,2506.6,0.09969098]
[1724868067640,3.9893,2506.7,2506.1,2.2696]
[1724868067808,3.98951,2506.6,2506.1,2.2696]
[1724868068014,0.50164692,2506.5,2506.1,2.2696]
[1724868068217,3.98951,2506.6,2506.1,2.2696]
[1724868068411,3.98964,2506.5,2506.1,2.2696]
[1724868068619,3.50164692,2507.0,2506.1,2.2696]
[1724868068620,3.98941,2506.7,2506.1,2.2696]
[1724868068825,3.98966,2506.5,2506.1,2.2696]
[1724868069145,3.98941,2506.7,2506.1,2.2696]
[1724868069342,3.98941,2506.7,2506.1,6.25975]
[1724868069512,3.98941,2506.7,2506.1,2.2696]
[1724868070255,7.49047692,2507.0,2506.2,3.99009]
[1724868070447,3.98869,2507.1,2506.4,3.98966]
[1724868070601,3.98883,2507.0,2506.5,2.4407]
[1724868070938,3.98869,2507.1,2506.5,6.43023]
[1724868071439,3.98883,2507.0,2506.5,3.482689]
[1724868071642,3.98883,2507.0,2506.5,2.4407]
[1724868071846,3.98925,2506.8,2506.5,2.4407]
[1724868072196,4.49048692,2507.0,2506.5,2.4407]
[1724868072549,3.98884,2507.0,2506.5,2.4407]
[1724868072846,3.98859,2507.2,2506.6,3.98941]
[1724868073047,2.3508,2508.0,2506.6,4.632351]
[1724868073201,3.98815,2507.5,2506.8,6.33102]
[1724868073407,3.98815,2507.5,2506.8,10.39983314]
[1724868073603,3.9884,2507.3,2506.9,0.09824952]
[1724868073911,3.98883,2507.1,2506.9,0.09824952]
[1724868074111,3.98854,2507.2,2506.9,0.09824952]
[1724868074530,7.97715,2507.2,2506.9,0.09824952]
[1724868074703,3.98883,2507.0,2506.9,0.09824952]
[1724868074903,3.98883,2507.0,2506.5,2.3679]
[1724868075147,3.98883,2507.0,2506.6,0.09851477]
[1724868075499,3.98854,2507.2,2506.6,4.08797477]
[1724868075715,3.98854,2507.2,2506.7,3.98927]
[1724868075904,3.98884,2507.0,2506.6,0.09851477]
[1724868076103,3.9886,2507.2,2506.6,4.08796477]
[1724868076344,7.97788,2507.0,2506.6,0.09851477]
[1724868076652,11.9679,2506.7,2506.6,0.09851477]
[1724868076810,8.60920171,2506.7,2506.6,0.09851477]
[1724868077012,3.98942,2506.7,2506.1,2.343]
[1724868077306,6.98908,2506.9,2506.2,4.06979547]
[1724868077502,3.0,2506.9,2506.1,6.56745]
[1724868077701,3.98949,2506.6,2506.2,0.09561426]
[1724868077908,3.98924,2506.8,2506.2,0.09561426]
[1724868078155,3.98933,2506.7,2506.2,0.09561426]
[1724868078749,3.98924,2506.8,2506.2,4.08566426]
[1724868078932,4.61963171,2506.9,2506.2,4.32947569]
[1724868079110,3.98916,2506.8,2506.2,4.08561426]
[1724868079742,4.61976171,2506.8,2506.2,4.08566426]
[1724868079949,4.61976171,2506.8,2506.3,3.98991]
[1724868080459,0.4154759,2506.7,2506.6,2.4557]
[1724868080751,0.4154759,2506.7,2506.6,10.52979148]
[1724868080913,0.4154759,2506.7,2506.6,11.58277063]
[1724868081114,0.4154759,2506.7,2506.6,7.59331063]
[1724868081733,0.4154759,2506.7,2506.6,2.55087148]
[1724868081941,0.4154759,2506.7,2506.6,6.54033148]
[1724868082120,7.45,2508.5,2506.6,6.54033148]
[1724868082121,3.98733,2508.0,2507.1,3.98865]
[1724868082462,9.13222181,2509.3,2507.7,3.98763]
[1724868082463,7.97338,2508.4,2507.7,3.98763]
[1724868082623,0.41545435,2508.2,2507.8,3.9874]
[1724868082828,0.41545435,2508.2,2507.8,4.08126781]
[1724868083035,0.41545435,2508.2,2507.8,0.09386781]
[1724868083341,0.41545435,2508.2,2508.0,3.98723]
[1724868083527,0.41545435,2508.2,2508.1,2.54923614]
[1724868084869,4.9203094,2508.2,2508.1,0.09353614]
[1724868085013,8.9072294,2508.2,2508.1,0.09353614]
[1724868085214,3.9879,2507.6,2507.2,2.4557]
[1724868085419,3.9882,2507.4,2506.8,6.44474]
[1724868085716,3.9879,2507.6,2506.8,3.499112]
[1724868085943,3.9879,2507.6,2507.0,3.98871]
[1724868086155,3.9879,2507.6,2507.1,0.09350312]
[1724868086347,7.9753,2507.8,2507.1,0.09350312]
[1724868086604,6.9875,2507.9,2507.4,2.4557]
[1724868086853,3.0,2507.9,2507.4,2.4557]
[1724868087023,8.38951435,2508.2,2507.5,4.08097065]
[1724868087227,3.9872,2508.1,2507.5,0.09306065]
[1724868087562,3.9872,2508.1,2507.5,4.08098065]
[1724868087852,3.98709,2508.1,2507.5,4.08098065]
[1724868088059,3.98713,2508.1,2507.5,4.08098065]
[1724868088219,3.98727,2508.0,2507.5,0.09306065]
[1724868088555,0.41545435,2508.2,2507.5,1.14555072]
[1724868088761,0.41545435,2508.2,2507.7,3.98758]
[1724868088915,0.41545435,2508.2,2507.7,3.9877]
[1724868089116,0.41545435,2508.2,2507.9,3.98727]
[1724868089335,0.41545435,2508.2,2508.0,0.09250777]
[1724868090233,0.41545435,2508.2,2508.0,4.07973777]
[1724868090515,0.41545435,2508.2,2508.0,0.09250777]
[1724868090917,0.41545435,2508.2,2507.9,3.98737]
[1724868091138,0.41545435,2508.2,2508.0,0.88994967]
[1724868091345,0.41545435,2508.2,2508.0,0.09246967]
[1724868091548,0.41545435,2508.2,2507.9,3.9873]
[1724868091748,0.41545435,2508.2,2508.0,0.09241729]
[1724868091955,0.41545435,2508.2,2508.0,0.17215232]
[1724868092161,0.41545435,2508.2,2508.1,6.44278]
[1724868092361,0.41545435,2508.2,2508.1,2.4557]
[1724868092559,0.41545435,2508.2,2508.1,6.53508674]
[1724868092761,0.41545435,2508.2,2508.1,7.59529192]
[1724868093059,3.98621,2508.7,2508.1,7.59529192]
[1724868093259,4.4016205,2508.6,2508.1,11.58224192]
[1724868093469,4.4016205,2508.6,2508.1,10.52203674]
[1724868093622,0.4153305,2508.6,2508.2,3.98687]
[1724868093821,0.4153305,2508.6,2508.1,6.53495674]
[1724868094045,0.4153305,2508.6,2508.3,0.09199521]
[1724868094262,0.4153305,2508.6,2508.2,0.17183678]
[1724868094464,3.98573,2509.0,2508.6,2.4557]
[1724868094637,3.98573,2509.0,2508.7,0.09107694]
[1724868094638,0.51793505,2508.9,2508.7,0.09107694]
[1724868094837,3.98597,2508.8,2508.7,0.09107694]
[1724868095077,4.40109264,2509.0,2508.6,2.4557]
[1724868095396,4.40109264,2509.0,2508.7,0.09107694]
[1724868095685,0.41536264,2509.0,2508.7,4.07718694]
[1724868095842,0.41536264,2509.0,2508.7,4.63939869]
[1724868096040,4.40103264,2509.0,2508.8,0.09096645]
[1724868096238,7.97162,2508.9,2508.8,0.09096645]
[1724868096436,3.98617,2508.7,2508.2,6.37801]
[1724868096704,7.97205,2508.8,2508.2,6.37801]
[1724868096845,3.98599,2508.8,2508.3,0.09151898]
[1724868097045,0.41536264,2509.0,2508.3,0.09151898]
[1724868097383,0.41536264,2509.0,2508.5,7.97282]
[1724868097679,0.41536264,2509.0,2508.7,7.97204]
[1724868097885,0.41536264,2509.0,2508.7,3.98601]
[1724868098086,0.41536264,2509.0,2508.8,0.09069992]
[1724868098461,0.41536264,2509.0,2508.6,3.98626]
[1724868098689,0.41536264,2509.0,2508.7,0.09081041]
[1724868098895,0.41536264,2509.0,2508.7,4.07692041]
[1724868099044,0.41536264,2509.0,2508.9,3.98581]
[1724868099243,0.41536264,2509.0,2508.8,6.33684]
[1724868099480,0.41536264,2509.0,2508.9,0.09050855]
[1724868099680,0.41536264,2509.0,2508.9,4.07631855]
[1724868099889,0.41536264,2509.0,2508.9,1.13182641]
[1724868100058,0.41536264,2509.0,2508.9,0.09050855]
[1724868100544,3.98494,2509.5,2508.9,4.15589476]
[1724868100772,0.41533287,2509.4,2508.9,4.15589476]
[1724868100955,0.41533287,2509.4,2509.0,3.98562]
[1724868101158,0.41533287,2509.4,2509.1,0.09027334]
[1724868102187,4.40035287,2509.4,2509.1,0.09027334]
[1724868102391,4.40037287,2509.4,2509.1,0.09027334]
[1724868102552,0.41533287,2509.4,2509.0,3.9855]
[1724868102750,0.41533287,2509.4,2509.1,0.09020198]
[1724868102988,0.41533287,2509.4,2509.2,3.98531]
[1724868103188,0.41533287,2509.4,2509.3,3.98517]
[1724868103373,0.41533287,2509.4,2509.3,2.42957633]
[1724868103723,0.51793505,2510.2,2509.3,2.42957633]
[1724868103724,3.984,2510.1,2509.5,3.98484]
[1724868103879,0.41537304,2509.9,2509.6,0.08963078]
[1724868104301,0.41537304,2509.9,2509.8,3.98438]
[1724868104610,4.39967304,2509.9,2509.8,0.08940997]
[1724868104978,0.93330809,2509.9,2509.1,7.41]
[1724868105166,3.98488,2509.5,2509.1,7.41]
[1724868105544,3.98488,2509.5,2509.0,2.3146]
[1724868105545,3.98525,2509.3,2509.0,2.3146]
[1724868106022,3.98549,2509.1,2508.7,2.4835]
[1724868106183,3.98525,2509.3,2508.7,7.609159]
[1724868106383,3.98541,2509.2,2508.7,3.623119]
[1724868106594,3.98525,2509.3,2508.7,3.623119]
[1724868106795,3.98525,2509.3,2508.8,4.7468099]
[1724868106996,3.98542,2509.2,2508.8,0.7609299]
[1724868107321,3.98542,2509.2,2508.7,2.4835]
[1724868107608,3.98534,2509.2,2508.7,2.4835]
[1724868107800,3.98525,2509.3,2508.7,6.46952]
[1724868108116,3.98502,2509.4,2508.8,7.97173]
[1724868108416,3.98482,2509.6,2509.1,2.3438]
[1724868108572,3.98494,2509.5,2509.1,2.3438]
[1724868109259,7.96932,2509.7,2509.1,2.3438]
[1724868109411,3.0,2509.8,2509.1,2.3438]
[1724868109412,6.98438,2509.8,2509.3,3.98516]
[1724868109705,6.98438,2509.8,2509.4,0.08929966]
[1724868109706,3.98438,2509.8,2509.4,0.08929966]
[1724868109906,0.41537304,2509.9,2509.1,2.3438]
[1724868110110,0.41537304,2509.9,2508.4,19.59]
[1724868110111,3.98511,2509.4,2509.2,0.08952054]
[1724868110309,3.98511,2509.4,2508.8,3.98588]
[1724868110477,3.98486,2509.5,2508.9,0.08982814]
[1724868110679,3.98477,2509.6,2509.1,3.98547]
[1724868110909,6.98446,2509.8,2509.2,4.07481676]
[1724868111112,3.0,2509.7,2509.2,6.52064676]
[1724868111289,3.98471,2509.6,2509.2,2.53539676]
[1724868111817,7.96951,2509.6,2509.2,2.53539676]
[1724868111978,3.98471,2509.6,2509.2,2.53539676]
[1724868112182,3.98471,2509.6,2509.2,0.08949676]
[1724868112522,3.98506,2509.4,2508.9,2.4459]
[1724868112674,3.98499,2509.5,2509.0,0.08971767]
[1724868113237,3.9847,2509.6,2509.0,0.08971767]
[1724868113382,4.39969304,2509.9,2509.2,3.98531]
[1724868113583,8.38397304,2509.9,2509.5,2.4459]
[1724868113796,4.39967304,2509.9,2509.5,2.4459]
[1724868114028,0.41537304,2509.9,2509.6,0.08905503]
[1724868114232,0.41537304,2509.9,2509.6,4.72565153]
[1724868114432,0.41537304,2509.9,2509.6,0.08905503]
[1724868115421,0.41537304,2509.9,2509.7,3.98444]
[1724868115931,0.41537304,2509.9,2509.8,0.08883422]
[1724868117027,0.41537304,2509.9,2509.6,3.9846]
[1724868117223,0.41537304,2509.9,2509.8,0.08883422]
[1724868117427,0.41537304,2509.9,2509.7,0.08894462]
[1724868117630,0.41537304,2509.9,2509.8,0.08883422]
[1724868118185,0.41537304,2509.9,2509.5,6.43061]
[1724868118492,4.39959304,2509.9,2509.2,7.41]
[1724868118696,4.39959304,2509.9,2509.3,0.08938631]
[1724868119040,3.98501,2509.4,2509.3,0.08938631]
[1724868119198,3.98477,2509.6,2509.3,0.08938631]
[1724868119397,3.98477,2509.6,2509.2,7.41]
[1724868119398,3.98489,2509.5,2509.2,7.41]
[1724868119719,0.41539004,2509.5,2509.3,0.08926262]
[1724868119923,4.40026004,2509.5,2509.2,7.41]
[1724868120123,4.40026004,2509.5,2509.3,0.08926262]
[1724868120332,0.41539004,2509.5,2509.2,3.98529]
[1724868120554,0.41539004,2509.5,2509.3,0.08926738]
[1724868120827,3.98512,2509.4,2508.9,3.1945616]
[1724868120998,3.98512,2509.4,2508.9,2.2942]
[1724868121186,3.98566,2509.0,2508.6,2.2942]
[1724868121385,7.97141,2509.0,2508.6,2.2942]
[1724868121639,3.98638,2508.6,2508.2,2.2942]
[1724868121816,3.98609,2508.8,2508.2,7.650242]
[1724868121986,3.0,2509.3,2508.2,3.663332]
[1724868122224,3.98541,2509.2,2508.7,6.38182]
[1724868122533,3.98541,2509.2,2508.7,2.3957]
[1724868122698,3.98559,2509.1,2508.7,2.3957]
[1724868122901,3.98566,2509.0,2508.7,2.3957]
[1724868123113,3.98566,2509.0,2508.7,3.033899]
[1724868123601,3.98541,2509.2,2508.7,3.033899]
[1724868123602,7.97089,2509.2,2508.7,3.033899]
[1724868123807,3.98502,2509.4,2508.9,3.98581]
[1724868124237,4.40036004,2509.5,2509.0,3.9856]
[1724868124539,0.41539004,2509.5,2509.3,2.3966]
[1724868124826,8.38519004,2509.5,2509.4,0.08918548]
[1724868125245,8.38519004,2509.5,2508.1,2.3405]
[1724868125246,3.98638,2508.6,2508.1,2.3405]
[1724868125393,3.98638,2508.6,2508.1,2.973261]
[1724868125717,3.98606,2508.8,2508.2,4.07731129]
[1724868126032,3.98606,2508.8,2508.3,3.98665]
[1724868126199,7.97155,2509.0,2508.4,3.98657]
[1724868126403,7.97155,2509.0,2508.4,4.07686023]
[1724868126641,3.0,2509.4,2508.4,0.17001274]
[1724868126942,3.98541,2509.2,2508.6,3.98618]
[1724868127229,3.9851,2509.4,2508.9,3.98567]
[1724868127438,4.40032004,2509.5,2509.1,2.3809]
[1724868127586,0.41539004,2509.5,2509.1,2.3809]
[1724868127792,0.41539004,2509.5,2509.2,0.08940636]
[1724868128031,0.41539004,2509.5,2509.2,0.734974]
[1724868128248,0.41539004,2509.5,2509.4,3.98501]
[1724868128539,0.41539004,2509.5,2509.4,10.51109143]
[1724868128734,3.98384,2510.2,2509.5,3.98474]
[1724868128891,3.98395,2510.1,2509.6,0.08896464]
[1724868129086,0.41544063,2510.0,2509.6,0.08896464]
[1724868129288,0.41544063,2510.0,2509.6,3.9846]
[1724868129522,0.41544063,2510.0,2509.7,0.08885423]
[1724868129708,4.39959063,2510.0,2509.7,0.08885423]
[1724868129892,0.41544063,2510.0,2509.7,0.08885423]
[1724868130293,0.93337568,2510.0,2509.7,0.08885423]
[1724868130537,8.90179568,2510.0,2509.4,6.35713]
[1724868130744,3.98484,2509.6,2509.5,0.08895616]
[1724868130904,3.98484,2509.6,2509.1,3.98547]
[1724868131232,3.98438,2509.8,2509.3,3.98516]
[1724868131531,0.41544063,2510.0,2509.4,2.48928574]
[1724868131736,0.41544063,2510.0,2509.4,6.47424574]
[1724868131973,8.38380063,2510.0,2509.4,6.47424574]
[1724868132337,4.39959063,2510.0,2509.4,6.47424574]
[1724868132873,3.98439,2509.8,2509.4,2.48928574]
[1724868133378,3.98423,2509.9,2509.4,6.47429574]
[1724868134075,3.9844,2509.8,2509.4,2.48928574]
[1724868134236,3.98485,2509.5,2509.4,0.08898574]
[1724868134580,3.98485,2509.5,2509.1,2.4062]
[1724868134759,7.96936,2509.7,2509.2,0.08924467]
[1724868134964,3.98471,2509.6,2509.2,0.08924467]
[1724868135163,3.98487,2509.5,2509.2,0.08924467]
[1724868135363,3.98463,2509.7,2509.2,0.08924467]
[1724868135534,4.39953063,2510.0,2509.2,5.12112314]
[1724868135535,3.9843,2509.9,2509.2,5.12112314]
[1724868135742,3.9843,2509.9,2509.4,3.98493]
[1724868135970,3.9843,2509.9,2509.5,0.08893714]
[1724868136577,0.41544063,2510.0,2509.5,0.08893714]
[1724868136784,7.39962063,2510.0,2509.5,0.08893714]
[1724868136996,7.39962063,2510.0,2509.6,2.4134]
[1724868137464,3.98416,2510.0,2509.7,0.08874009]
[1724868137634,3.98423,2509.9,2509.7,0.08874009]
[1724868138375,3.98399,2510.1,2509.7,0.08874009]
[1724868138376,7.96803,2510.1,2509.7,0.08874009]
[1724868138531,3.98409,2510.0,2509.7,0.08874009]
[1724868138729,3.98399,2510.1,2509.7,0.08874009]
[1724868139145,4.91712418,2510.3,2509.7,0.08874009]
[1724868139375,3.98369,2510.3,2509.8,3.9843]
[1724868139575,3.98369,2510.3,2509.9,0.0885193]
[1724868140682,2.78633505,2510.3,2509.9,0.0885193]
[1724868140892,7.96812,2510.0,2509.9,0.0885193]
[1724868141182,3.98502,2509.4,2509.0,9.7988]
[1724868141377,3.98502,2509.4,2509.1,0.08624069]
[1724868142085,3.98518,2509.3,2509.1,0.08624069]
[1724868142281,3.98495,2509.5,2509.1,0.08624069]
[1724868142282,7.96993,2509.5,2509.1,0.08624069]
[1724868142486,3.98494,2509.5,2509.1,0.08624069]
[1724868142793,3.98448,2509.8,2509.1,0.73232576]
[1724868143014,3.98448,2509.8,2509.2,3.98522]
[1724868143302,3.98448,2509.8,2509.3,3.98508]
[1724868143523,3.98448,2509.8,2509.3,4.07126584]
[1724868143663,3.98401,2510.1,2509.6,2.3287]
[1724868143869,3.98401,2510.1,2509.6,6.31339]
[1724868144066,3.98409,2510.0,2509.6,2.960039]
[1724868144314,3.9843,2509.9,2509.7,0.08571094]
[1724868144609,7.96865,2509.9,2509.7,0.08571094]
[1724868144771,3.98406,2510.0,2509.7,0.08571094]
[1724868145104,7.96876,2509.8,2509.7,0.08571094]
[1724868145514,7.96876,2509.8,2509.3,2.3287]
[1724868145667,7.96876,2509.8,2509.7,0.08565875]
[1724868145869,3.98485,2509.5,2509.3,2.3287]
[1724868146097,3.98477,2509.6,2509.3,2.3287]
[1724868146417,3.98477,2509.6,2508.7,10.41]
[1724868146418,3.98501,2509.4,2508.9,2.3287]
[1724868146628,3.98398,2510.1,2508.9,2.3287]
[1724868146629,3.98456,2509.7,2508.9,2.3287]
[1724868146767,3.9847,2509.6,2508.9,2.3287]
[1724868147001,3.98565,2509.0,2508.9,2.3287]
[1724868147411,3.98538,2509.2,2508.9,2.3287]
[1724868147833,3.98513,2509.4,2508.9,2.3287]
[1724868148045,3.98527,2509.3,2508.9,2.3287]
[1724868148540,3.98541,2509.2,2508.9,2.3287]
[1724868148904,7.97082,2509.2,2508.9,2.3287]
[1724868149100,3.98541,2509.2,2508.9,2.3287]
[1724868150304,3.98549,2509.1,2508.9,2.3287]
[1724868150508,3.98565,2509.0,2508.6,2.3565]
[1724868150919,3.0,2509.6,2508.7,3.98612]
[1724868151129,3.98527,2509.3,2508.8,3.98595]
[1724868151345,7.97054,2509.3,2508.8,3.98595]
[1724868151655,3.98495,2509.5,2508.8,5.1563509]
[1724868151869,3.0,2509.4,2508.8,5.1563509]
[1724868152234,6.98511,2509.4,2508.8,5.1562709]
[1724868152643,6.98511,2509.4,2508.9,3.98572]
[1724868153469,3.98462,2509.7,2509.2,3.98527]
[1724868153769,3.98439,2509.8,2509.3,3.98503]
[1724868154268,3.98352,2510.4,2509.8,3.9843]
[1724868154453,3.9832,2510.6,2510.1,2.365]
[1724868154660,3.9832,2510.6,2509.9,0.08599785]
[1724868154661,3.98367,2510.3,2509.9,0.08599785]
[1724868154860,3.98367,2510.3,2510.2,0.08566673]
[1724868155047,3.98343,2510.4,2509.9,3.98422]
[1724868155231,3.98343,2510.4,2510.2,0.0855386]
[1724868155431,3.98343,2510.4,2509.9,3.98422]
[1724868155633,8.38332711,2510.7,2510.3,0.08541876]
[1724868155929,8.38332711,2510.7,2510.4,0.08530841]
[1724868155930,3.98304,2510.7,2510.4,0.08530841]
[1724868156129,7.96611,2510.7,2510.1,3.98381]
[1724868156370,0.93513426,2511.0,2510.3,3.98358]
[1724868156371,0.41719921,2511.0,2510.3,3.98358]
[1724868156529,4.39978921,2511.0,2510.4,4.14838643]
[1724868156732,7.96485,2511.1,2510.5,3.98325]
[1724868156925,3.98253,2511.0,2510.6,0.08478415]
[1724868157374,3.98265,2510.9,2510.3,7.96694]
[1724868157665,3.98265,2510.9,2510.4,0.08500482]
[1724868158297,4.50058505,2510.9,2510.4,0.08500482]
[1724868158654,3.98327,2510.5,2510.4,0.08500482]
[1724868158849,4.50120505,2510.5,2510.4,0.08500482]
[1724868159088,3.98361,2510.3,2509.8,2.3398]
[1724868159450,3.98377,2510.2,2509.8,2.3398]
[1724868159791,3.98401,2510.1,2509.8,2.3398]
[1724868159986,3.984,2510.1,2509.8,2.3398]
[1724868160190,7.9674,2510.3,2509.8,2.3398]
[1724868160357,3.98376,2510.2,2509.8,2.3398]
[1724868160557,3.98395,2510.1,2509.8,2.3398]
[1724868160793,3.98368,2510.3,2509.8,2.3398]
[1724868161553,3.98368,2510.3,2509.8,6.32417]
[1724868161785,3.98337,2510.5,2509.9,3.98413]
[1724868162095,3.9836,2510.3,2509.8,2.3398]
[1724868162706,3.9836,2510.3,2509.8,6.32414]
[1724868162989,3.9836,2510.3,2509.8,7.354995]
[1724868163191,3.9836,2510.3,2509.8,6.32416]
[1724868163393,3.0,2510.4,2509.9,3.98419]
[1724868163702,7.96609,2510.7,2510.2,2.2629]
[1724868163854,3.98302,2510.7,2510.2,2.2629]
[1724868164055,7.96607,2510.7,2510.2,2.2629]
[1724868164280,3.98272,2510.9,2510.4,3.98341]
[1724868164596,3.98236,2511.1,2510.5,3.98327]
[1724868164756,3.98259,2511.0,2510.5,3.98327]
[1724868165158,3.98259,2511.0,2510.3,4.20976]
[1724868165159,3.98263,2510.9,2510.4,3.98341]
[1724868165457,4.50056505,2510.9,2510.4,3.98341]
[1724868165662,4.50056505,2510.9,2510.4,5.029017]
[1724868166267,4.50056505,2510.9,2510.5,3.98326]
[1724868166813,4.50056505,2510.9,2510.4,1.045607]
[1724868167298,8.48327505,2510.9,2510.4,1.045607]
[1724868167500,4.50056505,2510.9,2510.3,7.96693]
[1724868167704,4.50056505,2510.9,2510.4,3.98333]
[1724868168267,4.50056505,2510.9,2510.5,3.98326]
[1724868168612,7.96488,2511.1,2510.6,2.4764]
[1724868168761,6.9825,2511.0,2510.6,2.4764]
[1724868168966,3.0,2511.0,2510.6,2.4764]
[1724868169266,3.98241,2511.1,2510.6,2.4764]
[1724868169583,3.98241,2511.1,2510.7,0.08405712]
[1724868169765,3.98279,2510.8,2510.7,0.08405712]
[1724868169967,3.98298,2510.7,2510.3,2.4764]
[1724868170199,3.98298,2510.7,2510.4,0.08438811]
[1724868170805,3.98314,2510.6,2510.4,0.08438811]
[1724868171206,4.50072505,2510.8,2510.4,0.08438811]
[1724868171520,3.98304,2510.7,2510.4,0.08438811]
[1724868171670,3.98313,2510.6,2510.4,0.08438811]
[1724868172108,3.98327,2510.5,2510.4,0.08438811]
[1724868172279,3.98376,2510.2,2510.0,2.4764]
[1724868172484,3.98359,2510.3,2510.0,2.4764]
[1724868172785,3.9839,2510.1,2509.7,7.41]
[1724868173118,3.98264,2510.9,2509.7,7.41]
[1724868173119,6.98322,2510.6,2510.1,3.98386]
[1724868173275,3.98327,2510.5,2510.0,3.98391]
[1724868173607,3.98322,2510.6,2510.0,3.98391]
[1724868173776,3.0,2510.5,2510.0,3.98391]
[1724868174109,3.98333,2510.5,2510.3,2.4992]
[1724868174291,7.96669,2510.5,2510.3,2.4992]
[1724868174609,7.96669,2510.5,2510.0,3.98397]
[1724868174610,3.98333,2510.5,2510.0,2.4992]
[1724868174812,3.0,2510.9,2509.7,9.0351469]
[1724868174813,0.51793505,2510.7,2509.7,9.0351469]
[1724868174971,3.98359,2510.3,2509.7,9.9092]
[1724868175167,3.98359,2510.3,2509.7,13.89365]
[1724868175707,3.98303,2510.7,2510.0,3.98404]
[1724868175912,3.98302,2510.7,2510.1,0.07966747]
[1724868176210,3.98302,2510.7,2510.1,3.98378]
[1724868176381,3.0,2510.8,2510.4,2.4004]
[1724868176589,3.98272,2510.9,2510.4,2.4004]
[1724868176976,3.98296,2510.7,2510.4,2.4004]
[1724868177893,4.50065505,2510.9,2510.4,2.4004]
[1724868178106,3.98296,2510.7,2510.4,2.4004]
[1724868179373,3.98272,2510.9,2510.5,0.24004]
[1724868179572,3.98291,2510.8,2510.5,0.24004]
[1724868179902,3.98291,2510.8,2510.4,2.4004]
[1724868180270,3.98272,2510.9,2510.4,2.4004]
[1724868180466,3.98272,2510.9,2510.4,6.38379]
[1724868180710,3.98248,2511.0,2510.5,3.98324]
[1724868180927,3.98248,2511.0,2510.6,0.07965065]
[1724868181071,3.98248,2511.0,2510.5,1.036703]
[1724868181276,3.98248,2511.0,2510.5,5.09960365]
[1724868181475,3.98208,2511.3,2510.6,5.13142336]
[1724868181671,3.98235,2511.1,2510.8,2.413]
[1724868182416,3.98216,2511.2,2510.8,2.413]
[1724868182624,0.41719538,2511.4,2510.9,0.07964528]
[1724868182775,3.98188,2511.4,2510.8,6.39564]
[1724868183120,3.98224,2511.2,2510.8,4.191863]
[1724868183286,3.98224,2511.2,2510.8,2.413]
[1724868183487,3.98219,2511.2,2510.8,2.413]
[1724868183814,4.49996505,2511.3,2510.8,2.413]
[1724868184023,3.98229,2511.2,2510.8,2.413]
[1724868184228,7.96526,2510.9,2510.8,2.413]
[1724868184512,3.98249,2511.0,2510.6,7.41]
[1724868184713,3.98282,2510.8,2510.6,7.41]
[1724868184874,7.9657,2510.8,2510.4,2.3641]
[1724868185072,3.98327,2510.5,2510.4,2.3641]
[1724868185324,3.98361,2510.3,2510.1,9.7237]
[1724868185619,3.98374,2510.2,2509.8,21.9037]
[1724868185772,3.98391,2510.1,2509.8,2.3137]
[1724868185974,7.96741,2510.3,2509.8,2.3137]
[1724868186295,7.96734,2510.3,2509.8,2.943535]
[1724868186810,3.98367,2510.3,2509.8,2.943535]
[1724868187320,3.98375,2510.2,2509.8,2.943535]
[1724868187815,3.98339,2510.5,2509.9,0.6928035]
[1724868188115,3.98339,2510.5,2509.9,3.98419]
[1724868188306,3.0,2510.7,2509.8,6.29798]
[1724868188307,3.98344,2510.4,2509.8,6.29798]
[1724868188612,7.96696,2510.4,2509.9,0.629803]
[1724868188779,3.98359,2510.3,2509.9,0.629803]
[1724868189549,3.0,2510.7,2509.8,2.3137]
[1724868189550,3.98338,2510.5,2509.8,2.3137]
[1724868189813,3.98486,2509.5,2509.2,9.7237]
[1724868190012,3.9851,2509.4,2509.2,2.3137]
[1724868190314,3.98493,2509.5,2508.9,13.70946]
[1724868190613,3.98493,2509.5,2509.0,0.741]
[1724868190824,3.98525,2509.3,2509.0,0.741]
[1724868190977,3.98525,2509.3,2508.9,9.7237]
[1724868191178,7.50218505,2509.9,2508.9,7.41]
[1724868191179,3.98565,2509.0,2508.9,7.41]
[1724868191424,3.98565,2509.0,2508.2,24.09645]
[1724868191425,3.98606,2508.8,2508.3,2.3137]
[1724868191577,3.98656,2508.5,2508.3,2.3137]
[1724868191983,3.98656,2508.5,2507.9,2.3137]